Cogmind - Beta 14 @@@ ROGUE MODE // 2024.09.08 @ 18:04:10 Player: Lunace Result: Destroyed by DH-BQH(R) with Subdweller Laser Performance ------------- Evolutions (0) 0 Regions Visited (2) 400 Robots Destroyed (30) 150 Value Destroyed (783) 783 Prototype IDs (13) 260 Alien Tech Used (0) 0 Bonus (0) 0 TOTAL SCORE: 1593 Bonus ------- None Cogmind --------- Core Integrity 0/250 Matter 163/300 Energy 95/100 System Corruption 0% Temperature Cool (6) Movement Treading (160) Location -10/Subcaves Parts ------- > --- POWER (1) -------- (None) > --- PROPULSION (2) --- Spiked Treads > --- UTILITY (2) ------ Makeshift Light Armor Plating > --- WEAPON (2) ------- Barrage Gun Battle Cannon > --- INVENTORY (5) ---- Medium Storage Unit Particle Gun Battle Cannon Makeshift Hammer Peak State ------------ > --- POWER ------------ Light Ion Engine > --- PROPULSION ------- Light Treads Spiked Treads > --- UTILITY ---------- Humpback Rainbow Chip > --- WEAPON ----------- Makeshift Laser Barrage Gun Battle Cannon > --- INVENTORY -------- Medium Storage Unit Structural Scanner Seismic Detector Makeshift Light Armor Plating Particle Gun Battle Cannon Battle Cannon Flamer Makeshift Hammer SUBCON Basin [Rating: 47] Favorites ----------- Power Ion Engine Engine Ion Engine Propulsion Light Treads Treads Light Treads Utility Medium Storage Unit Device Seismic Detector Storage Medium Storage Unit Processor Rainbow Chip Protection Makeshift Light Armor Plating Weapon Battle Cannon Energy Gun Particle Gun Ballistic Gun Subdweller Machine Gun Ballistic Cannon Battle Cannon Launcher Subdweller Shrapnel Launcher Special Weapon Flamer Impact Weapon Makeshift Hammer Build | -11 -10 -10 ------- Run | Yrd Mat Sub Slots Evolved . | . . . Power . | . . . Propulsion . | . . . Utility . | . . . Weapon . | . . . Parts Attached 38 | 7 7 24 Power 7 | 1 . 6 Engine 7 | 1 . 6 Core . | . . . Reactor . | . . . Propulsion 6 | 2 1 3 Treads 6 | 2 1 3 Leg . | . . . Wheel . | . . . Hover . | . . . Flight . | . . . Utility 8 | 2 2 4 Device 3 | 1 1 1 Storage 3 | 1 1 1 Processor 1 | . . 1 Hackware . | . . . Protection 1 | . . 1 Artifact . | . . . Weapon 17 | 2 4 11 Energy Gun 7 | 2 3 2 Energy Cannon . | . . . Ballistic Gun 2 | . . 2 Ballistic Cannon 3 | . . 3 Launcher 1 | . . 1 Special Weapon 1 | . . 1 Impact Weapon 3 | . 1 2 Slashing Weapon . | . . . Piercing Weapon . | . . . Special Melee Weapon . | . . . Unidentified Prototypes . | . . . Parts Lost 12 | . 1 11 Power 4 | . . 4 Propulsion 3 | . . 3 Utility . | . . . Weapon 5 | . 1 4 Highest Loss Streak 4 | . 1 4 To Critical Strikes . | . . . Average Slot Usage (%) 88 | . 99 85 Engine 14 | . 14 14 Treads 24 | . 27 23 Device 4 | . 14 2 Storage 10 | . 14 9 Processor 6 | . . 7 Energy Gun 8 | . 27 4 Ballistic Gun 3 | . . 4 Ballistic Cannon 8 | . . 10 Launcher 1 | . . 2 Impact Weapon 4 | . . 5 Peak Build Rating 47 | 7 12 47 Average Rating 23 | 5 9 26 On Entrance 6 | . 7 11 Naked Turns . | . . . Heaviest Build 211 | 13 22 211 Greatest Support 60 | 40 40 60 Greatest Overweight (x) 5 | . . 5 Average Overweight (x) . | . . . Largest Inventory Capacity 35 | 8 10 35 Average Capacity 11 | 6 9 12 Most Carried 24 | 1 9 24 Average Carried 9 | . 6 10 Final Capacity 10 | 8 10 5 Final Carried 9 | 1 9 4 Class Distribution -------------------- 70% | Mutant 17% | Derelict-Gunner 7% | Hauler-Gunner Dominant Class ---------------- Mutant | -10/Materials Mutant | -10/Subcaves Resources | -11 -10 -10 ----------- Run | Yrd Mat Sub Matter Collected 925 | 247 73 605 Remotely . | . . . Salvage Created 805 | 11 443 351 Parts 47 | 2 26 19 Haulers Intercepted . | . . . Recyclers Shooed 2 | 1 1 . Parts Field Recycled . | . . . Retrieved Matter . | . . . Parts Self-Destructed 7 | . . 7 Prevented . | . . . Kills | -11 -10 -10 ------- Run | Yrd Mat Sub Combat Hostiles Destroyed 26 | . 9 17 Melee 1 | . . 1 Guns 15 | . 9 6 Cannons 5 | . . 5 AOE 5 | . . 5 Classes Destroyed 8 | 1 5 2 Worker 1 | . 1 . Tunneler 1 | 1 . . Recycler 1 | . 1 . Watcher 1 | . 1 . Swarmer 9 | . 2 7 Grunt 8 | . 7 1 Sentry 1 | . . 1 Subdweller 8 | . . 8 Best Kill Streak 6 | 1 4 6 Combat Bots Only 6 | . 4 6 Max Kills in Single Turn 2 | 1 1 2 Gunslinging . | . . . Exploded 2 | . . 2 Melee 1 | . . 1 Uniques/NPCs Destroyed . | . . . Combat | -11 -10 -10 -------- Run | Yrd Mat Sub Hostile Shots Fired 178 | . 61 117 Missed 50 | . 26 24 Damage Taken 1922 | . 376 1546 Core 265 | . 45 220 Absorbed by Shields . | . . . Regen/Repaired (Parts) 94 | . 94 . Core Remaining (%) 100 | 100 . . Volleys Fired 107 | 2 40 65 Largest 3 | 2 2 3 Hottest 189 | 80 130 189 Shots Fired 194 | 4 80 110 Gun 123 | 4 80 39 Cannon 63 | . . 63 Launcher 7 | . . 7 Special 1 | . . 1 Kinetic 101 | . . 101 Thermal 93 | 4 80 9 Explosive . | . . . Electromagnetic . | . . . Robot Hit Streak 24 | 3 8 24 Robot Miss Streak 6 | . 6 3 Penetration Max . | . . . Secondary Targets 1 | . 1 . Max Gunslinging Chain 1 | . 1 . Shots Hit Robots 124 | 3 50 71 Core Hits 50 | 2 23 25 Critical Kills . | . . . Critical Parts Destroyed 1 | . . 1 Critical Strikes 2 | . 1 1 Burn 1 | . 1 . Smash 1 | . . 1 Melee Attacks 30 | . 2 28 Impact 30 | . 2 28 Slashing . | . . . Piercing . | . . . Sneak Attacks 1 | . . 1 Combat Hostiles . | . . . Follow-up Attacks . | . . . Damage Inflicted 2480 | 33 642 1805 Guns 1102 | 33 642 427 Cannons 544 | . . 544 Explosions 602 | . . 602 Melee 220 | . . 220 Ramming . | . . . Kinetic 1472 | . . 1472 Thermal 788 | 33 642 113 Explosive . | . . . Electromagnetic . | . . . Impact 220 | . . 220 Slashing . | . . . Piercing . | . . . Highest Corruption . | . . . Average Corruption . | . . . Corruption Purged . | . . . Corruption Blocked . | . . . Overload Shots . | . . . Overflow Damage 77 | . . 77 Projectiles . | . . . Explosions 31 | . . 31 Melee 46 | . . 46 Knockbacks 6 | . . 6 Impact 3 | . . 3 Kinetic 3 | . . 3 Secondary . | . . . Self-Inflicted Damage 8 | . . 8 Shots 1 | . . 1 Rammed . | . . . Targets Rammed . | . . . Kicked . | . . . Crushed . | . . . Highest Temperature 113 | 36 113 48 Average Temperature 30 | 20 34 16 Received Heat Transfer 576 | . 177 399 Siege Activations . | . . . Robots Corrupted . | . . . Combat Hostiles . | . . . Parts Fried . | . . . Impact Corruptions 2 | . . 2 Robots Melted . | . . . Combat Hostiles . | . . . Parts Melted 2 | . 1 1 Heat Transferred 1941 | 75 1564 302 Parts Sabotaged . | . . . Parts Stolen . | . . . Parts Stripped . | . . . Power Chain Reactions . | . . . Alert | -11 -10 -10 ------- Run | Yrd Mat Sub Peak Influence 209 | 5 209 . Initial 3 | . 3 . Average 75 | 2 84 . Maximum Alert Level 1 | . 1 . Low Security (%) 97 | 100 97 . Level 1 2 | . 2 . Level 2 . | . . . Level 3 . | . . . Level 4 . | . . . Level 5 . | . . . High Security . | . . . Max Security . | . . . Squads Dispatched 1 | . 1 . Investigation 1 | . 1 . Extermination . | . . . Reinforcement . | . . . Assault . | . . . Garrison . | . . . Intercept . | . . . Searches Triggered . | . . . Construction Impeded . | . . . Haulers Reinforced . | . . . Active Scanning Responses . | . . . Cargo Convoy Interrupts . | . . . Stealth | -11 -10 -10 --------- Run | Yrd Mat Sub Distress Signals 2 | . 2 . Communications Jammed . | . . . Distress Signals . | . . . Times Spotted 40 | . 15 25 Peak Tracking Total 6 | . 6 6 Tactical Retreats 4 | . 2 2 Traps | -11 -10 -10 ------- Run | Yrd Mat Sub Traps Triggered 1 | . 1 . Indirectly . | . . . Trap Hack Attempts . | . . . Triggered . | . . . Disarmed . | . . . Reprogrammed . | . . . Reused . | . . . Traps Extracted . | . . . Installed . | . . . Triggered . | . . . Machines | -11 -10 -10 ---------- Run | Yrd Mat Sub Machines Disabled 5 | . . 5 Max in Single Turn 4 | . . 4 Machines Repaired . | . . . Machines Dismantled . | . . . Machines Sabotaged . | . . . Overloaded Fab Kills . | . . . Hacking | -11 -10 -10 --------- Run | Yrd Mat Sub Machines Accessed 9 | . 6 3 Terminals 5 | . 5 . Fabricators . | . . . Repair Stations 1 | . 1 . Recycling Units . | . . . Scanalyzers . | . . . Garrison Access . | . . . Total Hacks 25 | . 19 6 Successful 18 | . 12 6 Failed 7 | . 7 . Catastrophic 1 | . 1 . Database Lockouts . | . . . Manual 14 | . 14 . Terminals 17 | . 17 . Fabricators . | . . . Repair Stations 2 | . 2 . Recycling Units . | . . . Scanalyzers . | . . . Garrison Access . | . . . Terminal Hacks 9 | . 3 6 Record 3 | . . 3 Prototype ID Bank 1 | . 1 . Open Door 1 | . . 1 Locate Traps 1 | . 1 . Hauler Manifests 1 | . 1 . Derelict Proto ID Bank 1 | . . 1 Release Object 1 | . . 1 Fabricator Hacks . | . . . Repair Station Hacks 2 | . 2 . Scan Component 1 | . 1 . Repair 1 | . 1 . Recycling Unit Hacks . | . . . Scanalyzer . | . . . Garrison Access Hacks . | . . . Unauthorized Hacks 7 | . 7 . Terminals 7 | . 7 . Botnet 2 | . 2 . Skim 5 | . 5 . Fabricators . | . . . Repair Stations . | . . . Recycling Units . | . . . Scanalyzers . | . . . Garrison Access . | . . . Data Cores Recovered . | . . . Used . | . . . Hacking Detections 4 | . 4 . Full Trace Events . | . . . Feedback Events . | . . . Feedback Blocked . | . . . Robot Schematics Acquired . | . . . Robots Built . | . . . Authchips . | . . . Time . | . . . Total Robot Build Rating . | . . . Part Schematics Acquired . | . . . Parts Built . | . . . Authchips . | . . . Time . | . . . Total Part Build Rating . | . . . Parts Repaired 1 | . 1 . Time 26 | . 26 . Parts Recycled . | . . . Recycled Matter . | . . . Retrieved Matter . | . . . Retrieved Components . | . . . Parts Scanalyzed . | . . . Part Schematics Acquired . | . . . Parts Damaged . | . . . Bothacking | -11 -10 -10 ------------ Run | Yrd Mat Sub Used RIF Installer . | . . . Robots Hacked . | . . . Non-combat . | . . . Combat . | . . . Robot Hacks Applied . | . . . Relay Couplers Released . | . . . Fabnet Peak Effective % . | . . . Robots Rewired . | . . . Allies Hacked . | . . . Hacks Repelled . | . . . Allies | -11 -10 -10 -------- Run | Yrd Mat Sub Total Allies . | . . . Largest Group . | . . . Highest-Rated Group . | . . . Highest-Rated Ally . | . . . Total Orders . | . . . Ally Attacks . | . . . Total Damage . | . . . Kills . | . . . Allies Corrupted . | . . . Allies Melted . | . . . Intel | -11 -10 -10 ------- Run | Yrd Mat Sub Robot Analysis Total . | . . . Derelict Logs Recovered 3 | . . 3 Drone Launches . | . . . Drone Recoveries . | . . . Exploration | -11 -10 -10 ------------- Run | Yrd Mat Sub Turns Passed 3579 | 86 659 2834 Spaces Moved 1724 | 43 291 1390 Core 5 | 5 . . Treads 1719 | 38 291 1390 Legs . | . . . Wheels . | . . . Hover . | . . . Flight . | . . . Fastest Speed 50 | 50 160 160 Average Speed 176 | 147 160 180 Slowest Speed 610 | 160 160 610 Overloaded Moves . | . . . Propulsion Burnouts . | . . . Robots Hopped . | . . . Cave-ins Triggered . | . . . Exploration Rate (%) 46 | 4 59 77 Regions Visited 2 Branch Regions 1 Pre-discovered Areas 3 | . 2 1 Known Exits Taken 1 | . 1 . Unknown Exits Taken 1 | 1 . . Scrap Searched 9 | . . 9 Spaces Dug 3 | . 1 2 Terrain Destroyed 84 | . 1 83 Melee 1 | . 1 . Projectile 3 | . . 3 AOE 80 | . . 80 Terrain Rammed . | . . . Walls Destroyed . | . . . Machines Disabled . | . . . Actions | -11 -10 -10 --------- Run | Yrd Mat Sub Total 2021 | 58 400 1563 Wait 82 | 6 49 27 Move 1722 | 42 290 1390 Hop . | . . . Pick Up 25 | 1 9 15 Fast Attach 17 | 7 2 8 Attach 9 | . 1 8 Detach 2 | . . 2 Swap 12 | . 4 8 Drop 15 | . 3 12 Fire 107 | 2 40 65 Melee 30 | . 2 28 Ram . | . . . Kick . | . . . Crush . | . . . Escape Stasis . | . . . Rewire . | . . . Trap . | . . . Miscellaneous . | . . . Route ------- -11/Scrapyard -10/Materials (discovered 6 exits: *Mat x3 / *Min x2 / *Sub) -10/Subcaves (discovered 3 exits: [*Mat x2] / [*Rec]) History --------- Turn | Location | Event 2 | -11/Scrapyard | Met Revision 17 10 | -11/Scrapyard | Discovered new exit (range 13) 87 | -11/Scrapyard | Entered Materials 274 | -10/Materials | Discovered new exit (range 7) 328 | -10/Materials | Build established: Mutant 447 | -10/Materials | Discovered new exit (range 16) 519 | -10/Materials | Identified exit to Materials 519 | -10/Materials | Identified exit to Mines 560 | -10/Materials | Learned location of Storage (-9) 592 | -10/Materials | Identified exit to Subcaves 613 | -10/Materials | Learned location of 2 exits from Materials 622 | -10/Materials | Learned location of Mines (-9) 632 | -10/Materials | Learned location of 1 exit from Storage 666 | -10/Materials | Repaired Lgt. Treads 746 | -10/Materials | Entered Subcaves 920 | -10/Subcaves | Disturbed a concealed Subdweller 1142 | -10/Subcaves | Visited 4L-MR0's lab 1161 | -10/Subcaves | Found Rainbow Chip 1163 | -10/Subcaves | Attached Rainbow Chip, gained temporary slots: Power, Propulsion, Utility, Weapon 1454 | -10/Subcaves | Build established: Derelict-Gunner 1590 | -10/Subcaves | Shifting Twisted Machinery released Sub. Machine Gun 1593 | -10/Subcaves | Shifting Twisted Machinery released Sub. Optics 1606 | -10/Subcaves | Ambushed by Subdweller buried in earth 1606 | -10/Subcaves | Ambushed by Subdweller buried in earth 1641 | -10/Subcaves | Discovered new exit (range 5) 1673 | -10/Subcaves | Learned location of Zion (-6) 1680 | -10/Subcaves | A swath of the cavern ceiling suddenly collapsed 1705 | -10/Subcaves | Discovered new exit (range 6) 1804 | -10/Subcaves | Disturbed a concealed Subdweller 1886 | -10/Subcaves | Discovered new exit (range 15) 2012 | -10/Subcaves | Build established: Mutant 2021 | -10/Subcaves | Learned Materials non-interactive machine intel 2083 | -10/Subcaves | Shifting Twisted Machinery released Flamer 2098 | -10/Subcaves | Shifting Twisted Machinery released Mak. Hammer 2159 | -10/Subcaves | Core integrity fell below 50% 2857 | -10/Subcaves | Lost 4 parts (1p2n1w) 3343 | -10/Subcaves | Found SUBCON Basin 3556 | -10/Subcaves | A Subdweller sparked back to life 3556 | -10/Subcaves | A Subdweller sparked back to life 3556 | -10/Subcaves | A Subdweller sparked back to life 3563 | -10/Subcaves | Core integrity fell below 20% 3580 | -10/Subcaves | Destroyed by DH-BQH(R) with Subdweller Laser Last Messages --------------- 03556_ 4U-Z6N(R) creaks and sparks as it begins to move. 03556_ U2-LD5(R) creaks and sparks as it begins to move. 03556_ DH-BQH(R) creaks and sparks as it begins to move. 03562_ U2-LD5(R) knocked back. 03563_ Battle Cannon destroyed. 03565_ Temporary Weapon slot lost. 03565_ Discarded Rainbow Chip. 03566_ Lgt. Treads destroyed. 03566_ Mak. Laser destroyed. 03567_ Temporary Propulsion slot lost. 03567_ Temporary Utility slot lost. 03568_ 4U-Z6N(R) suffers critical hit (Destroy). 03568_ 4U-Z6N(R) destroyed. 03569_ Subatomizers dissect the Flamer. 03572_ U2-LD5(R) affixes Scrap Shield Fragment to Scrap Shield. 03573_ U2-LD5(R) destroyed. Map ----- +----------------------------------------------------+ | ????# #????????#####?# | | ????## ### ## #####??????????????## | | ?????###??# ### #???????????????????? | | ??????????#### ## #???????????????????? | | ?????????????#### ##??????????????????? | | ????????????????# #??????????????????? | | ??????????????#### #??????????????????? | | ????????????## ### ###??????????????????? | | ??????????? ## ##????????????????????? | | ??????????? ### #?????????????????????? | | ??????????? ## #????????????????????? | | ?????###??# #???????????????????? | | ?????# ### #???????????????????? | | ????? ### #???????????????????? | | ?????# ####??# ##???????????????????? | | ?????# #??????# #???#########??????### | | ?????# #??????### #???# &#% # ######## | | ?????# #???????##< ###### &%& | | ?????# #???????#"" < """" !! | | ??#### ##??????# #""" #### # | | ### #??????#<" # "" ##??###### | | "X### ###???#### "" # "###??????# | | ## #???###"##*<" ## "" #??????## | | " # #??## ##*R=## "##???##### | | " # # ##??# &&%%|& ##????# | | ## # ##???# &[!@!" ##?????# # | | ?## ## #????# !%#""#" #??????# ## | | ??### ##????## % ###"""""#??????# #? | | ????## #?####### &## ###"""""#??????# ## | | ????# ### ## ### """ "##??????## | | ????# % ## " " ##????????## # | | ????## ## # " " #??????????## ##### | | ?????# ####### """""???????????## ##???? | | ?????# #?????## #"""""""""?????????????###????? | | ?????## ?????# # # # #????????????????????? | | ??????## ##????# ? #????????????????????? | | ???????####????? ### # ##????????????????????? | | ???????????????## ???### #?????????????????????? | | ????????????????# ?????? #?????????????????????? | | ???????????????? ??????? #????????????????????? | | ????????????????# ?????????##????????????????????# | | ???????????????? ??????????????????????????????## | | ???????????????? ??????????????????????????????## | | ??????????????? ?????????????????????????????##" | | ???????????????? ?????????????????????????????#" " | | ???????????????? ?????????????????????????????#" " | | ??????????????????????????????????????????????# "" | | ??????????????????????????????????????????????## | | ???????????????????????????????????????????????## | | ??????????????????????????????????????????????### | +----------------------------------------------------+ Best States ------------- Heat Dissipation 39 Energy Generation 20 Energy Capacity 400 Matter Stores 300 Matter Capacity 300 Sight Range 16 Terrain Scan Density 10 Armor Coverage 100 Evasion (%) 40 Recoil Reduction 3 Item Schematics ----------------- None Robot Schematics ------------------ None Fabricated ------------ Nothing Alien Tech Used ----------------- None Achievements -------------- None Challenges ------------ None Game ------ Seed QuantumShadingFirepult Manual? 0 Play Time 00:19:36 Cumulative 340.8 hours Start 2024.09.08 @ 17:43:39 End 2024.09.08 @ 18:04:10 Sessions 1 Manual Loads 0 Difficulty Rogue Special Mode None Game No. 346 Rogue 341 Adventurer 5 Explorer 0 Win Type - Total 5 Types 4/0/0/1/0/0/0/0/0 Lore% 77 Gallery% 83 Achievement% 68 Wizard Run 0 Options --------- Layout 1 ASCII 0 Keyboard 0 Movement Arrows Keybinds 0 Fullscreen 1 Font 24/Terminus Map View 50x35 Zoom Use 0% Tactical HUD 1 Map Filters NONE Filters NONE Steam 1 RUN: 7b0b607d-81e9-437f-9525-f3ece093de90